bitfinex/quotes_SOLUSD_20250918
["timestamp","ask_amount","ask_price","bid_price","bid_amount"]
[1758186481418,31.26,246.56,246.52,1e-08]
[1758186481586,0.65,246.55,246.52,1e-08]
[1758186483287,31.2,246.55,246.53,0.68]
[1758186484282,31.2,246.55,246.53,26.68]
[1758186484689,31.2,246.55,246.53,30.73620241]
[1758186485010,31.2,246.55,246.53,26.0]
[1758186485912,31.2,246.55,246.53,30.05625929]
[1758186486313,31.2,246.55,246.53,30.73625929]
[1758186486987,31.2,246.55,246.52,1e-08]
[1758186487185,0.69,246.54,246.52,1e-08]
[1758186488010,31.2,246.55,246.52,1e-08]
[1758186488185,0.69,246.53,246.52,1e-08]
[1758186492695,31.95,246.55,246.52,1e-08]
[1758186492897,0.69,246.54,246.52,1e-08]
[1758186493519,0.69,246.53,246.52,1e-08]
[1758186495802,37.60090388,246.55,246.52,1e-08]
[1758186496002,0.69,246.54,246.52,1e-08]
[1758186496522,0.69,246.53,246.52,1e-08]
[1758186498725,0.06,246.55,246.52,1e-08]
[1758186498898,31.2,246.54,246.52,0.68000001]
[1758186499210,31.2,246.54,246.53,0.68]
[1758186501524,31.89,246.54,246.52,1e-08]
[1758186502524,31.2,246.54,246.52,0.68000001]
[1758186502830,31.2,246.54,246.53,0.68]
[1758186503010,31.2,246.54,246.52,1e-08]
[1758186506438,31.89,246.54,246.52,1e-08]
[1758186506605,31.2,246.54,246.52,1e-08]
[1758186506810,0.69,246.53,246.52,1e-08]
[1758186507009,16.57044479,246.53,246.52,1e-08]
[1758186508526,20.62674625,246.53,246.52,1e-08]
[1758186508913,2.97485078,246.53,246.52,1e-08]
[1758186509113,31.2,246.53,246.52,0.68000001]
[1758186510836,31.2,246.53,246.52,4.73646601]
[1758186511435,31.2,246.53,246.52,30.73646601]
[1758186513107,31.2,246.53,246.52,1e-08]
[1758186516429,31.2,246.53,246.52,26.68000001]
[1758186517033,0.06,246.54,246.53,4.05630146]
[1758186517233,0.06,246.54,246.53,4.73630146]
[1758186520532,0.06,246.54,246.53,30.05630146]
[1758186522126,0.06,246.54,246.53,30.73630146]
[1758186522327,0.06,246.54,246.53,30.05630146]
[1758186522528,0.06,246.54,246.53,30.73630146]
[1758186531050,0.06,246.54,246.53,4.73630146]
[1758186531254,0.06,246.54,246.53,30.73630146]
[1758186533254,0.06,246.57,246.53,30.73630146]
[1758186533255,0.06,246.59,246.53,138.94851572]
[1758186533434,1e-08,246.59,246.57,0.28432314]
[1758186533633,1e-08,246.59,246.58,32.20432314]
[1758186533833,1e-08,246.6,246.58,45.79991715]
[1758186534061,0.06,246.63,246.61,26.0]
[1758186534358,0.06,246.69,246.64,26.0]
[1758186534868,0.06,246.69,246.65,4.77432799]
[1758186536238,0.06,246.69,246.65,6.39655246]
[1758186540578,1e-08,246.68,246.65,30.41228959]
[1758186540738,0.1,246.79,246.75,39.59559401]
[1758186541075,0.1,246.79,246.74,26.0]
[1758186541076,0.1,246.79,246.78,26.0]
[1758186541536,0.1,246.79,246.78,0.72]
[1758186542257,0.1,246.79,246.78,1.00432314]
[1758186542661,0.1,246.79,246.78,5.05651537]
[1758186548073,0.1,246.79,246.78,36.37651537]
[1758186549572,0.1,246.79,246.78,5.05651537]
[1758186549758,0.1,246.79,246.78,35.65651537]
[1758186550072,0.1,246.79,246.78,61.35219223]
[1758186550453,0.1,246.79,246.78,30.05219223]
[1758186550653,0.1,246.79,246.78,4.75219223]
[1758186551189,0.79,246.79,246.76,4.05236784]
[1758186551390,0.79,246.79,246.77,26.0]
[1758186551564,0.79,246.79,246.78,26.0]
[1758186551755,0.79,246.79,246.76,4.05236784]
[1758186552085,0.69,246.78,246.77,26.0]
[1758186552787,0.69,246.78,246.74,30.05275776]
[1758186552960,0.69,246.77,246.74,30.05275776]
[1758186553567,0.79,246.79,246.74,4.05275776]
[1758186553797,0.69,246.78,246.74,30.05275776]
[1758186554153,0.1,246.79,246.75,0.7]
[1758186554358,0.1,246.79,246.76,0.7]
[1758186554659,0.1,246.79,246.74,40.88488064]
[1758186554892,0.1,246.79,246.75,0.7]
[1758186555080,0.1,246.79,246.74,40.18488064]
[1758186555273,0.1,246.79,246.77,4.05235644]
[1758186555876,0.1,246.79,246.77,4.75235644]
[1758186556159,0.1,246.79,246.78,26.0]
[1758186556360,0.1,246.79,246.78,30.75219223]
[1758186557569,0.1,246.79,246.78,62.33651537]
[1758186558169,0.1,246.79,246.78,31.03651537]
[1758186558384,0.1,246.79,246.78,62.35651537]
[1758186559561,0.1,246.79,246.78,62.33651537]
[1758186559877,0.1,246.79,246.78,31.03651537]
[1758186560674,0.1,246.79,246.78,4.05219223]
[1758186560886,0.1,246.79,246.78,30.05219223]
[1758186563092,0.1,246.79,246.78,30.75219223]
[1758186564970,0.1,246.79,246.78,30.05219223]
[1758186566987,0.1,246.79,246.78,30.75219223]
[1758186567591,0.1,246.79,246.78,4.75219223]
[1758186567776,0.1,246.79,246.78,30.75219223]
[1758186568095,0.1,246.79,246.78,31.03651537]
[1758186569889,0.1,246.79,246.78,62.31651537]
[1758186570889,0.1,246.79,246.78,31.03651537]
[1758186572587,0.1,246.79,246.78,4.05219223]
[1758186572897,0.8,246.79,246.77,84.85232896]
[1758186573097,0.7,246.78,246.75,4.05255747]
[1758186573399,0.1,246.79,246.77,26.0]
[1758186573897,0.1,246.79,246.71,87.1526268]
[1758186573898,0.7,246.78,246.72,25.35930535]
[1758186574698,0.7,246.78,246.72,26.01930535]
[1758186575401,0.7,246.78,246.72,0.94432314]
[1758186575802,0.7,246.78,246.77,26.0]
[1758186576779,0.7,246.78,246.77,30.05235644]
[1758186579481,0.1,246.79,246.77,30.05235644]
[1758186579806,0.8,246.79,246.77,30.05235644]
[1758186582795,0.8,246.79,246.77,26.0]
[1758186583397,0.8,246.79,246.77,30.05227714]
[1758186584311,0.7,246.78,246.75,26.0]
[1758186584499,0.7,246.77,246.75,26.0]
[1758186584700,0.7,246.76,246.75,26.0]
[1758186585285,0.7,246.78,246.75,26.0]
[1758186585490,0.7,246.77,246.75,30.05266105]
[1758186587208,0.8,246.79,246.76,26.0]
[1758186587715,0.7,246.78,246.76,26.0]
[1758186588816,0.1,246.79,246.76,30.05237772]
[1758186588994,0.7,246.78,246.76,30.05237772]
[1758186590827,0.1,246.79,246.76,30.05237772]
[1758186591916,0.1,246.79,246.77,0.66]
[1758186592905,0.1,246.79,246.78,4.05219223]
[1758186594626,0.1,246.79,246.76,4.05252066]
[1758186595118,0.1,246.79,246.76,4.76252066]
[1758186595421,0.1,246.79,246.76,4.05252066]
[1758186595610,0.1,246.79,246.77,0.71]
[1758186595812,0.1,246.79,246.78,4.05219223]
[1758186598509,0.1,246.79,246.75,26.71]
[1758186599599,0.66,246.78,246.75,26.0]
[1758186600034,0.76,246.79,246.75,26.0]
[1758186600321,0.76,246.79,246.75,26.71]
[1758186600503,0.1,246.79,246.76,4.76252066]
[1758186601024,0.76,246.79,246.76,4.05252066]
[1758186601405,0.1,246.79,246.76,4.05252066]
[1758186601718,0.1,246.79,246.77,0.71]
[1758186602223,0.1,246.79,246.76,4.05252066]
[1758186602430,0.1,246.79,246.76,4.73252066]
[1758186602626,0.1,246.79,246.76,4.05252066]
[1758186602828,0.69,246.78,246.75,30.05267087]
[1758186603036,0.69,246.77,246.75,30.05267087]
[1758186603413,0.79,246.79,246.75,30.05267087]
[1758186603610,0.69,246.78,246.75,30.05267087]
[1758186604430,0.69,246.77,246.75,30.05267087]
[1758186604610,0.1,246.79,246.75,30.05267087]
[1758186604809,0.79,246.79,246.75,30.05267087]
[1758186605525,0.1,246.79,246.76,30.73250014]
[1758186605723,0.1,246.79,246.77,0.68]
[1758186606130,0.1,246.79,246.78,0.68]
[1758186607534,0.1,246.79,246.78,4.73219223]
[1758186609111,0.1,246.79,246.78,4.05219223]
[1758186611223,0.1,246.79,246.77,4.05235644]
[1758186611432,0.1,246.79,246.77,4.73235644]
[1758186613130,0.1,246.79,246.78,0.68]
[1758186613833,0.1,246.79,246.77,4.05235644]
[1758186614032,0.1,246.79,246.77,4.73235644]
[1758186614235,0.1,246.79,246.77,4.05235644]
[1758186614441,0.79,246.79,246.78,26.0]
[1758186615011,0.1,246.79,246.78,26.0]
[1758186615407,0.79,246.79,246.78,26.0]
[1758186617729,4.84204566,246.79,246.74,0.03]
[1758186617932,36.02204566,246.79,246.74,0.03]
[1758186618824,46.15211576,246.79,246.74,0.03]
[1758186620332,46.15211576,246.79,246.75,0.68]
[1758186620333,0.1,246.79,246.75,0.68]
[1758186621730,0.1,246.79,246.78,26.0]
[1758186621939,0.1,246.79,246.78,26.68]
[1758186623723,0.1,246.79,246.78,30.73219223]
[1758186624415,0.1,246.79,246.78,36.80003825]
[1758186624616,0.1,246.79,246.78,37.08436139]
[1758186624818,0.1,246.79,246.78,38.7055339]
[1758186625119,0.1,246.79,246.78,37.08436139]
[1758186626039,0.1,246.79,246.78,42.67661817]
[1758186630444,0.1,246.79,246.78,123.47661817]
[1758186630643,0.1,246.79,246.78,123.07139895]
[1758186630838,1e-08,246.79,246.78,131.00436616]
[1758186631033,1e-08,246.79,246.78,136.66699296]
[1758186631242,1e-08,246.79,246.78,169.46796839]
[1758186634726,1e-08,246.79,246.78,138.28796839]
[1758186634929,1e-08,246.79,246.78,169.44796839]
[1758186636428,0.1,246.81,246.79,13.87991715]
[1758186636729,0.1,246.81,246.8,31.84950952]
[1758186637047,0.1,246.81,246.8,43.7943931]
[1758186637229,0.1,246.81,246.8,47.84625695]
[1758186639648,0.1,246.82,246.81,0.28432314]
[1758186639846,0.1,246.82,246.81,6.63694994]
[1758186640150,0.06,246.84,246.81,6.63694994]
[1758186640151,0.06,246.84,246.83,13.87991715]
[1758186640334,0.06,246.84,246.83,50.70254395]
[1758186640542,0.06,246.84,246.83,51.39254395]
[1758186641049,0.06,246.84,246.83,53.01319099]
[1758186641631,0.06,246.84,246.83,57.06456237]
[1758186644737,1e-08,246.84,246.83,56.99419235]
[1758186645054,0.1,246.89,246.84,19.54254394]
[1758186645229,0.1,246.89,246.84,20.23254394]
[1758186645649,0.1,246.89,246.84,101.03254394]
[1758186645855,0.8,246.89,246.84,132.19254394]
[1758186646234,0.76,246.85,246.83,11.2642752]
[1758186646435,0.76,246.85,246.84,26.0]
[1758186647033,0.06,246.85,246.84,26.0]
[1758186647351,0.76,246.85,246.84,26.0]
[1758186647745,0.06,246.85,246.84,26.0]
[1758186648359,0.06,246.85,246.84,30.05120725]
[1758186648865,0.06,246.85,246.84,4.05120725]
[1758186649034,0.06,246.85,246.84,30.05120725]
[1758186652242,1e-08,246.85,246.84,125.82624512]
[1758186652466,1e-08,246.85,246.84,131.0837512]
[1758186652751,1e-08,246.85,246.84,132.70439824]
[1758186652952,0.1,246.89,246.88,26.0]
[1758186653153,0.1,246.89,246.88,0.28432314]
[1758186653346,0.1,246.89,246.88,26.28432314]
[1758186654237,0.1,246.89,246.88,30.33487401]
[1758186657662,0.1,246.89,246.88,33.62263212]
[1758186659662,0.1,246.89,246.88,34.28263212]
[1758186662859,0.1,246.89,246.88,115.08263212]
[1758186666463,0.1,246.89,246.88,115.11263212]
[1758186666960,0.16,246.89,246.88,115.11263212]
[1758186667358,0.06,246.92,246.89,0.28432314]
[1758186667560,0.06,246.92,246.91,13.87991715]
[1758186667865,0.72,246.98,246.94,26.0]
[1758186668241,0.1,246.99,246.94,26.0]
[1758186668444,0.72,246.98,246.95,14.17290949]
[1758186668872,0.1,246.99,246.98,26.0]
[1758186669350,0.82,246.99,246.95,30.04940271]
[1758186669548,0.72,246.98,246.95,30.04940271]
[1758186669752,0.72,246.97,246.95,30.04940271]
[1758186669984,0.72,246.96,246.95,30.04940271]
[1758186672877,0.72,246.96,246.95,26.0]
[1758186673045,0.72,246.96,246.93,4.04973039]
[1758186673250,0.72,246.95,246.92,26.0]
[1758186673478,0.72,246.94,246.92,26.0]
[1758186673683,0.72,246.93,246.92,26.0]
[1758186674674,0.72,246.93,246.92,30.0498947]
[1758186678366,0.72,246.93,246.92,26.0]
[1758186680068,0.72,246.97,246.93,26.0]
[1758186680267,0.72,246.96,246.93,26.0]
[1758186680659,0.72,246.95,246.93,26.0]
[1758186681564,0.72,246.94,246.93,26.0]
[1758186682276,0.72,246.96,246.93,30.04967801]
[1758186682467,0.72,246.94,246.93,26.0]
[1758186683262,4.14874707,246.99,246.93,26.0]
[1758186683463,31.16,246.97,246.93,26.0]
[1758186683664,0.72,246.96,246.93,26.0]
[1758186683865,0.72,246.95,246.93,30.04973069]
[1758186684462,0.72,246.94,246.93,30.04973069]
[1758186685283,0.78,246.94,246.93,30.04973069]
[1758186685481,0.78,246.94,246.92,0.03]
[1758186685684,4.82960218,246.94,246.92,0.03]
[1758186685869,31.16,246.93,246.92,0.03]
[1758186686380,31.88,246.93,246.92,0.03]
[1758186686888,0.72,246.93,246.92,0.03]
[1758186687091,31.88,246.93,246.92,0.03]
[1758186687391,0.72,246.93,246.92,0.03]
[1758186687695,31.88,246.93,246.92,0.03]
[1758186690271,35.92973069,246.93,246.92,0.03]
[1758186690987,4.76973069,246.93,246.92,0.03]
[1758186691294,35.92973069,246.93,246.92,0.03]
[1758186700295,49.5253247,246.93,246.92,0.03]
[1758186700897,50.98246471,246.93,246.92,0.03]
[1758186704506,51.04246471,246.93,246.92,0.03]
[1758186705084,19.88246471,246.93,246.92,0.03]
[1758186705386,50.32246471,246.93,246.92,0.03]
[1758186705586,50.99246471,246.93,246.92,0.03]
[1758186706198,51.27678785,246.93,246.92,0.03]
[1758186707402,17.98964784,246.93,246.92,0.03]
[1758186707583,50.60678785,246.93,246.92,0.03]
[1758186708782,19.44678785,246.93,246.92,0.03]
[1758186708988,50.60678785,246.93,246.92,0.03]
[1758186710702,19.44678785,246.93,246.92,0.03]
[1758186710906,50.60678785,246.93,246.92,0.03]
[1758186711096,19.44678785,246.93,246.92,0.03]
[1758186711285,51.27678785,246.93,246.92,0.03]
[1758186712315,50.60678785,246.93,246.92,0.03]
[1758186713009,47.22705716,246.93,246.92,0.03]
[1758186714216,51.27678785,246.93,246.92,0.03]
[1758186719518,13.59559401,246.89,246.88,0.03]
[1758186719816,46.21273402,246.89,246.88,0.03]
[1758186720123,46.93273402,246.89,246.88,0.03]
[1758186720318,52.60481915,246.89,246.88,0.03]
[1758186722432,63.01510931,246.89,246.83,0.03]
[1758186722610,1.45714001,246.86,246.83,0.03]
[1758186722800,46.49705716,246.86,246.83,0.03]
[1758186723002,47.20705716,246.86,246.83,0.03]
[1758186723300,48.82895275,246.86,246.83,0.03]
[1758186723604,17.66895275,246.86,246.83,0.03]
[1758186723794,48.82895275,246.86,246.83,0.03]
[1758186724595,52.87983179,246.86,246.83,0.03]
[1758186727705,20.26269178,246.86,246.83,0.03]
[1758186727914,52.87983179,246.86,246.83,0.03]
[1758186728627,21.71983179,246.86,246.83,0.03]
[1758186728838,52.87983179,246.86,246.83,0.03]
[1758186732738,52.16983179,246.86,246.83,0.03]
[1758186733228,52.87983179,246.86,246.83,0.03]
[1758186734128,52.16983179,246.86,246.83,0.03]
[1758186734332,52.87983179,246.86,246.83,0.03]
[1758186737209,21.71983179,246.86,246.83,0.03]
[1758186737411,52.87983179,246.86,246.83,0.03]
[1758186737813,53.70298314,246.86,246.83,0.03]
[1758186738556,20.26269178,246.86,246.83,0.03]
[1758186738849,51.42269178,246.86,246.83,0.03]
[1758186740325,19.55269178,246.86,246.83,0.03]
[1758186740536,21.83298314,246.86,246.83,0.03]
[1758186740852,53.70298314,246.86,246.83,0.03]
[1758186745050,79.70298314,246.86,246.83,0.03]
[1758186748246,48.54298314,246.86,246.83,0.03]
[1758186748452,79.70298314,246.86,246.83,0.03]
[1758186751654,48.54298314,246.86,246.83,0.03]
[1758186751955,78.99298314,246.86,246.83,0.03]
[1758186752663,79.68298314,246.86,246.83,0.03]
[1758186754568,78.99298314,246.86,246.83,0.03]
[1758186756161,76.71269178,246.86,246.83,0.7]
[1758186757865,45.55269178,246.86,246.83,0.7]
[1758186758160,76.71269178,246.86,246.83,0.7]
[1758186758661,77.40269178,246.86,246.83,0.03]
[1758186760464,87.52988938,246.86,246.83,1e-08]
[1758186760648,42.16020851,246.84,246.83,1e-08]
[1758186760839,73.30020851,246.84,246.83,1e-08]
[1758186761043,73.99020851,246.84,246.83,1e-08]
[1758186761243,75.6123672,246.84,246.83,1e-08]
[1758186762266,77.72728036,246.84,246.83,1e-08]
[1758186762657,81.77848761,246.84,246.83,1e-08]
[1758186763065,50.63848761,246.84,246.83,1e-08]
[1758186763248,85.18203759,246.84,246.83,1e-08]
[1758186763953,81.77848761,246.84,246.83,1e-08]
[1758186764152,54.04203759,246.84,246.83,1e-08]
[1758186764347,85.18203759,246.84,246.83,1e-08]
[1758186765460,53.35203759,246.84,246.83,1e-08]
[1758186765666,49.94848761,246.84,246.83,1e-08]
[1758186765971,81.08848761,246.84,246.83,1e-08]
[1758186766348,49.94848761,246.84,246.83,1e-08]
[1758186766554,81.08848761,246.84,246.83,1e-08]
[1758186768552,81.77848761,246.84,246.83,1e-08]
[1758186770172,81.08848761,246.84,246.83,1e-08]
[1758186770564,81.77848761,246.84,246.83,1e-08]
[1758186771064,85.18203759,246.84,246.83,1e-08]
[1758186771573,54.04203759,246.84,246.83,1e-08]
[1758186771755,84.49203759,246.84,246.83,1e-08]
[1758186772774,81.08848761,246.84,246.83,1e-08]
[1758186775980,49.94848761,246.84,246.83,1e-08]
[1758186776179,81.08848761,246.84,246.83,1e-08]
[1758186776580,81.14848761,246.84,246.83,1e-08]
[1758186777670,81.14848761,246.84,246.83,0.72000001]
[1758186778386,81.14848761,246.84,246.83,1e-08]
[1758186779492,84.55203759,246.84,246.83,1e-08]
[1758186781768,81.14848761,246.84,246.83,1e-08]
[1758186783500,47.72819625,246.84,246.83,0.69000001]
[1758186783666,81.14848761,246.84,246.83,0.69000001]
[1758186784963,50.00848761,246.84,246.83,0.69000001]
[1758186785165,81.14848761,246.84,246.83,0.69000001]
[1758186785985,50.00848761,246.84,246.83,0.69000001]
[1758186786501,81.14848761,246.84,246.83,0.69000001]
[1758186787001,50.00848761,246.84,246.83,0.69000001]
[1758186787201,81.14848761,246.84,246.83,0.69000001]
[1758186788387,50.00848761,246.84,246.83,0.69000001]
[1758186788575,81.14848761,246.84,246.83,0.69000001]
[1758186789888,81.14848761,246.84,246.83,1e-08]
[1758186790793,81.14848761,246.84,246.83,0.69000001]
[1758186791094,47.72819625,246.84,246.83,0.69000001]
[1758186791303,81.14848761,246.84,246.83,0.69000001]
[1758186791891,50.00848761,246.84,246.83,0.69000001]
[1758186792095,81.14848761,246.84,246.83,0.69000001]
[1758186792576,81.12848761,246.84,246.83,0.69000001]
[1758186793981,78.84819625,246.84,246.83,0.69000001]
[1758186794291,81.12848761,246.84,246.83,0.69000001]
[1758186795907,81.12848761,246.84,246.83,1e-08]
[1758186797111,81.73308762,246.84,246.83,1e-08]
[1758186797801,80.91235537,246.84,246.83,1e-08]
[1758186801296,48.33279626,246.84,246.83,1e-08]
[1758186801509,49.79235537,246.84,246.83,0.69000001]
[1758186801706,53.19590535,246.84,246.83,0.69000001]
[1758186802004,22.33279626,246.84,246.83,0.69000001]
[1758186802186,54.91235537,246.84,246.83,0.69000001]
[1758186802386,23.79235537,246.84,246.83,0.69000001]
[1758186802704,54.91235537,246.84,246.83,0.69000001]
[1758186803203,23.79235537,246.84,246.83,0.69000001]
[1758186803503,54.91235537,246.84,246.83,0.69000001]
[1758186803706,23.79235537,246.84,246.83,0.69000001]
[1758186804002,54.91235537,246.84,246.83,0.69000001]
[1758186804203,23.79235537,246.84,246.83,0.69000001]
[1758186804393,54.91235537,246.84,246.83,0.69000001]
[1758186805286,54.91235537,246.84,246.83,1e-08]
[1758186806403,54.91235537,246.84,246.83,0.69000001]
[1758186810118,23.79235537,246.84,246.83,1e-08]
[1758186810315,55.62235537,246.84,246.83,1e-08]
[1758186810503,81.62235537,246.84,246.83,1e-08]
[1758186810699,81.62235537,246.84,246.8,0.03]
[1758186810700,39.87991715,246.81,246.8,1e-08]
[1758186810905,72.45947626,246.81,246.8,1e-08]
[1758186811202,73.16947626,246.81,246.8,1e-08]
[1758186811388,74.82137185,246.81,246.8,1e-08]
[1758186811796,13.59559401,246.76,246.74,0.03]
[1758186811982,49.87428005,246.75,246.74,0.03]
[1758186812197,50.5812886,246.75,246.74,0.03]
[1758186812613,52.20397374,246.75,246.74,0.03]
[1758186812990,21.08397374,246.75,246.74,0.03]
[1758186813289,48.8021614,246.75,246.74,0.03]
[1758186813714,52.8548463,246.75,246.74,0.03]
[1758186815218,45.55528719,246.75,246.74,0.74]
[1758186815411,78.1348463,246.75,246.74,0.74]
[1758186815718,78.8548463,246.75,246.74,0.03]
[1758186816098,52.8548463,246.75,246.74,0.03]
[1758186819595,52.8548463,246.75,246.73,1e-08]
[1758186819596,13.87991715,246.74,246.73,1e-08]
[1758186819786,18.25859448,246.74,246.72,0.03]
[1758186819990,47.17947626,246.73,246.72,0.03]
[1758186820591,51.23248967,246.73,246.72,0.03]
[1758186820996,52.85530647,246.73,246.72,0.03]
[1758186821198,54.31486558,246.73,246.72,0.03]
[1758186824120,17.93309484,246.72,246.71,1e-08]
[1758186824325,22.31177217,246.72,246.71,1e-08]
[1758186824622,23.03177217,246.72,246.71,1e-08]
[1758186824803,24.65465481,246.72,246.71,1e-08]
[1758186827421,39.59559401,246.7,246.69,0.03]
[1758186827626,73.91903537,246.7,246.69,0.03]
[1758186827928,74.63903537,246.7,246.69,0.03]
[1758186828217,80.31562185,246.7,246.69,0.03]
[1758186829211,13.87991715,246.69,246.67,0.03]
[1758186829406,46.45947626,246.68,246.67,0.03]
[1758186830001,48.08262232,246.68,246.67,0.03]
[1758186830634,52.13645724,246.68,246.67,0.03]
[1758186831907,21.01645724,246.68,246.67,0.74]
[1758186832102,52.13645724,246.68,246.67,0.74]
[1758186835420,76.67689813,246.68,246.67,0.74]
[1758186836328,45.55689813,246.68,246.67,0.74]
[1758186836530,76.67689813,246.68,246.67,0.74]
[1758186837536,78.13645724,246.68,246.67,0.74]
[1758186838218,76.67689813,246.68,246.67,0.74]
[1758186838407,78.13645724,246.68,246.67,0.74]
[1758186839815,78.13645724,246.68,246.67,0.03]
[1758186841036,78.79645724,246.68,246.67,0.03]
[1758186841335,52.79645724,246.68,246.67,0.03]
[1758186842034,52.13645724,246.68,246.67,0.03]
[1758186842437,21.01645724,246.68,246.67,0.03]
[1758186842737,52.13645724,246.68,246.67,0.03]
[1758186844831,52.80645724,246.68,246.67,0.03]
[1758186845026,52.13645724,246.68,246.67,0.03]
[1758186848731,39.87991715,246.65,246.64,0.03]
[1758186848933,72.45947626,246.65,246.64,0.03]
[1758186849120,75.64972023,246.65,246.64,0.03]
[1758186849542,77.27306391,246.65,246.64,0.03]
[1758186850138,81.3273919,246.65,246.64,0.03]
[1758186850439,50.2073919,246.65,246.64,0.03]
[1758186850637,13.87991715,246.64,246.62,0.03]
[1758186850840,46.45947626,246.63,246.62,0.03]
[1758186851053,46.45947626,246.63,246.6,0.2]
[1758186851240,41.05515312,246.61,246.6,0.2]
[1758186851548,72.17515312,246.61,246.6,0.2]
[1758186851749,75.31387709,246.61,246.6,0.2]
[1758186852246,79.36886269,246.61,246.6,0.2]
[1758186852442,83.42566011,246.61,246.6,0.2]
[1758186853153,84.09566011,246.61,246.6,0.2]
[1758186853353,83.42566011,246.61,246.6,0.2]
[1758186853555,89.26389655,246.61,246.6,0.2]
[1758186854224,90.21821969,246.61,246.6,0.2]
[1758186855348,89.54821969,246.61,246.6,0.2]
[1758186855721,90.21821969,246.61,246.6,0.2]
[1758186855922,89.54821969,246.61,246.6,0.2]
[1758186857552,58.42821969,246.61,246.6,0.2]
[1758186857734,89.54821969,246.61,246.6,0.2]
[1758186857936,87.49040968,246.61,246.6,0.2]
[1758186858633,86.82040968,246.61,246.6,0.2]
[1758186859645,13.87991715,246.6,246.58,0.2]
[1758186859945,53.98494837,246.59,246.58,0.2]
[1758186860325,58.04261954,246.59,246.58,0.2]
[1758186861150,58.71261954,246.59,246.58,0.2]
[1758186861356,58.04261954,246.59,246.58,0.2]
[1758186862045,58.71261954,246.59,246.58,0.2]
[1758186863451,58.04261954,246.59,246.58,0.2]
[1758186863651,58.04261954,246.59,246.58,0.9]
[1758186863840,24.63762677,246.59,246.58,0.9]
[1758186864030,58.04261954,246.59,246.58,0.9]
[1758186864942,26.92261954,246.59,246.58,0.9]
[1758186865142,58.04261954,246.59,246.58,0.9]
[1758186866156,26.92261954,246.59,246.58,0.9]
[1758186866454,58.04261954,246.59,246.58,0.9]
[1758186869556,58.04261954,246.59,246.58,0.2]
[1758186869935,58.04261954,246.59,246.58,0.9]
[1758186870967,58.04261954,246.59,246.58,0.2]
[1758186871548,39.87991715,246.56,246.55,0.03]
[1758186871746,73.28490992,246.56,246.55,0.03]
[1758186871949,75.90963389,246.56,246.55,0.03]
[1758186872467,77.53343887,246.56,246.55,0.03]
[1758186872642,81.58924678,246.56,246.55,0.03]
[1758186875843,84.59423955,246.56,246.55,0.03]
[1758186876463,83.87423955,246.56,246.55,0.03]
[1758186876643,84.59423955,246.56,246.55,0.03]
[1758186876834,82.30924678,246.56,246.55,0.03]
[1758186877766,81.58924678,246.56,246.55,0.03]
[1758186879250,83.87423955,246.56,246.55,0.03]
[1758186880059,84.59423955,246.56,246.55,0.03]
[1758186881260,82.30924678,246.56,246.55,0.03]
[1758186881950,50.46924678,246.56,246.55,0.03]
[1758186882150,84.59423955,246.56,246.55,0.03]
[1758186883168,82.30924678,246.56,246.55,0.03]
[1758186883469,84.59423955,246.56,246.55,0.03]
[1758186883646,13.87991715,246.55,246.53,0.03]
[1758186883846,75.30557955,246.54,246.53,0.03]
[1758186884065,46.79030352,246.54,246.53,0.75]